[Event "EYCC Open-U12 2019"]
[Site "Bratislava"]
[Date "2019.08.08"]
[Round "7.28"]
[White "Chyndygyr, Tamerlan"]
[Black "Franc, Borna"]
[Result "1-0"]
[ECO "D30"]
[WhiteElo "2018"]
[BlackElo "1826"]
[Annotator "NA"]
[PlyCount "97"]
[EventDate "2019.08.02"]
[EventType "swiss"]
[EventCountry "SVK"]
[SourceTitle "playchess.com"]
[Source "ChessBase"]
[SourceQuality "1"]
[TimeControl "40/5400+30:1800+30"]

1. d4 {[%emt 0:00:00]} d5 {[%emt 0:00:00]} 2. c4 {[%emt 0:00:00]} e6 {[%emt 0:00:00]} 3. Nf3 {[%emt 0:00:00]} f5 {[%emt 0:00:01]} 4. Nc3 {[%emt 0:01:45]} Nf6 {[%emt 0:00:08]} 5. Bg5 {[%emt 0:01:40]} Be7 {[%emt 0:00:08]} 6. e3 {[%emt 0:00:21]} O-O {[%emt 0:00:08]} 7. Bd3 {[%emt 0:00:06]} c6 {[%emt 0:00:09]} 8. O-O {[%emt 0:00:16]} Ne4 {[%emt 0:00:31]} 9. Bxe7 {[%emt 0:00:30]} Qxe7 {[%emt 0:00:03]} 10. Ne5 {[%emt 0:02:08]} Nd7 {[%emt 0:01:32]} 11. Nxd7 {[%emt 0:02:29]} Bxd7 {[%emt 0:00:09]} 12. f3 {[%emt 0:00:14]} Nxc3 {[%emt 0:01:16]} 13. bxc3 {[%emt 0:00:06]} c5 {[%emt 0:12:14]} 14. Rb1 {[%emt 0:06:18]} Bc6 {[%emt 0:01:51]} 15. Qe2 {[%emt 0:01:19]} Qd6 {[%emt 0:06:42]} 16. Rfd1 {[%emt 0:07:39]} Rae8 {[%emt 0:02:48]} 17. f4 {[%emt 0:04:49]} Rf6 {[%emt 0:05:59]} 18. Rb2 {[%emt 0:11:31]} Re7 {[%emt 0:08:34]} 19. Qf1 {[%emt 0:10:03]} Rg6 {[%emt 0:05:23]} 20. Re2 {[%emt 0:09:15]} Re8 {[%emt 0:00:43]} 21. cxd5 {[%emt 0:06:12]} Bxd5 {[%emt 0:02:31]} 22. c4 {[%emt 0:01:15]} Bc6 {[%emt 0:00:09]} 23. d5 {[%emt 0:00:40]} exd5 {[%emt 0:01:22]} 24. Bxf5 {[%emt 0:00:57]} Rf6 {[%emt 0:00:08]} 25. e4 {[%emt 0:01:19]} Qe7 {[%emt 0:00:47]} 26. cxd5 {[%emt 0:03:31]} Bb5 {[%emt 0:03:53]} 27. Be6+ {[%emt 0:06:16]} Rxe6 {[%emt 0:00:50]} 28. dxe6 {[%emt 0:00:04]} Qxe6 {[%emt 0:00:03]} 29. Rde1 {[%emt 0:04:41]} Bxe2 {[%emt 0:03:48]} 30. Qxe2 {[%emt 0:00:18]} Rd8 {[%emt 0:05:57]} 31. e5 {[%emt 0:02:10]} Rd4 {[%emt 0:01:07]} 32. f5 {[%emt 0:02:25]} Qxf5 {[%emt 0:06:11]} 33. e6 {[%emt 0:00:13]} Rd8 {[%emt 0:00:07]} 34. Qc4 {[%emt 0:01:07]} Re8 {[%emt 0:00:51]} 35. e7+ {[%emt 0:02:05]} Qf7 {[%emt 0:04:24]} 36. Qxc5 {[%emt 0:00:28]} b6 {[%emt 0:00:40]} 37. Qd6 {[%emt 0:01:06]} h6 {[%emt 0:00:19]} 38. Qd7 {[%emt 0:00:50]} a5 {[%emt 0:00:19]} 39. a4 {[%emt 0:00:11]} Kh8 {[%emt 0:00:41]} 40. Qd8 {[%emt 0:00:00]} Kh7 {[%emt 0:00:00]} 41. h3 {[%emt 0:02:18]} g6 {[%emt 0:01:44]} 42. Qc7 {[%emt 0:02:26]} Kg7 {[%emt 0:01:29]} 43. Qd7 {[%emt 0:00:30]} Kh7 {[%emt 0:00:23]} 44. Rf1 {[%emt 0:01:55]} Qg8 {[%emt 0:00:54]} 45. Rf8 {[%emt 0:00:55]} Qb3 {[%emt 0:00:03]} 46. Qxe8 {[%emt 0:00:31]} Qe3+ {[%emt 0:00:06]} 47. Rf2 {[%emt 0:00:10]} Qe1+ {[%emt 0:00:03]} 48. Rf1 {[%emt 0:00:05]} Qe3+ {[%emt 0:00:04]} 49. Kh1 {[%emt 0:00:05]} 1-0

[Event "EYCC Open-U12 2019"]
[Site "Bratislava"]
[Date "2019.08.08"]
[Round "7.29"]
[White "Gregoric, Andraz"]
[Black "Cohen, Elad"]
[Result "1/2-1/2"]
[ECO "C65"]
[WhiteElo "1911"]
[BlackElo "2002"]
[Annotator "NA"]
[PlyCount "200"]
[EventDate "2019.08.02"]
[EventType "swiss"]
[EventCountry "SVK"]
[SourceTitle "playchess.com"]
[Source "ChessBase"]
[SourceQuality "1"]
[TimeControl "40/5400+30:1800+30"]

1. e4 {[%emt 0:00:00]} e5 {[%emt 0:00:00]} 2. Nf3 {[%emt 0:00:00]} Nc6 {[%emt 0:00:00]} 3. Bb5 {[%emt 0:00:00]} Nf6 {[%emt 0:00:25]} 4. Qe2 {[%emt 0:00:03]} Bc5 {[%emt 0:13:09]} 5. c3 {[%emt 0:01:11]} O-O {[%emt 0:08:09]} 6. O-O {[%emt 0:00:07]} d6 {[%emt 0:03:03]} 7. h3 {[%emt 0:01:38]} Re8 {[%emt 0:02:31]} 8. d3 {[%emt 0:01:56]} a6 {[%emt 0:02:31]} 9. Ba4 {[%emt 0:00:35]} b5 {[%emt 0:04:06]} 10. Bb3 {[%emt 0:01:55]} h6 {[%emt 0:03:10]} 11. Be3 {[%emt 0:04:41]} Bxe3 {[%emt 0:01:35]} 12. fxe3 {[%emt 0:00:33]} Be6 {[%emt 0:03:11]} 13. Nbd2 {[%emt 0:02:16]} d5 {[%emt 0:07:52]} 14. Rad1 {[%emt 0:04:59]} Qe7 {[%emt 0:05:49]} 15. Qf2 {[%emt 0:01:59]} dxe4 {[%emt 0:01:41]} 16. Nxe4 {[%emt 0:00:19]} Nxe4 {[%emt 0:00:20]} 17. dxe4 {[%emt 0:00:50]} Bxb3 {[%emt 0:02:41]} 18. axb3 {[%emt 0:00:09]} Red8 {[%emt 0:09:35]} 19. Rd5 {[%emt 0:10:15]} Rxd5 {[%emt 0:00:49]} 20. exd5 {[%emt 0:00:07]} Na5 {[%emt 0:00:22]} 21. b4 {[%emt 0:00:55]} Nc4 {[%emt 0:00:32]} 22. e4 {[%emt 0:00:10]} Rd8 {[%emt 0:09:05]} 23. Ra1 {[%emt 0:15:08]} f5 {[%emt 0:05:12]} 24. exf5 {[%emt 0:01:36]} e4 {[%emt 0:01:00]} 25. Nd4 {[%emt 0:00:37]} e3 {[%emt 0:01:13]} 26. Qe2 {[%emt 0:00:20]} Rxd5 {[%emt 0:01:26]} 27. Rxa6 {[%emt 0:01:22]} Rxd4 {[%emt 0:05:11]} 28. cxd4 {[%emt 0:01:55]} Qe4 {[%emt 0:01:44]} 29. f6 {[%emt 0:18:48]} Qxd4 {[%emt 0:04:01]} 30. Ra8+ {[%emt 0:02:01]} Kf7 {[%emt 0:00:36]} 31. fxg7 {[%emt 0:00:50]} Kxg7 {[%emt 0:00:29]} 32. Qg4+ {[%emt 0:00:52]} Qxg4 {[%emt 0:00:02]} 33. hxg4 {[%emt 0:00:05]} Nxb2 {[%emt 0:00:11]} 34. Kf1 {[%emt 0:00:08]} Nd3 {[%emt 0:00:33]} 35. Ra7 {[%emt 0:00:14]} Nxb4 {[%emt 0:00:50]} 36. Rxc7+ {[%emt 0:00:20]} Kg6 {[%emt 0:00:13]} 37. Rb7 {[%emt 0:00:11]} Nc2 {[%emt 0:00:13]} 38. Rb6+ {[%emt 0:01:51]} Kg7 {[%emt 0:01:03]} 39. Ke2 {[%emt 0:00:00]} b4 {[%emt 0:00:00]} 40. Kd3 {[%emt 0:00:00]} Ne1+ {[%emt 0:00:00]} 41. Kxe3 {[%emt 0:07:56]} Nxg2+ {[%emt 0:05:41]} 42. Ke4 {[%emt 0:06:42]} Nh4 {[%emt 0:00:51]} 43. Rxb4 {[%emt 0:00:11]} Kf6 {[%emt 0:00:36]} 44. Rb5 {[%emt 0:00:29]} Ng6 {[%emt 0:02:07]} 45. Rh5 {[%emt 0:01:07]} Kg7 {[%emt 0:00:18]} 46. Kf5 {[%emt 0:00:59]} Nf8 {[%emt 0:05:39]} 47. Rh2 {[%emt 0:00:55]} Ng6 {[%emt 0:00:18]} 48. Rh1 {[%emt 0:00:15]} Ne7+ {[%emt 0:00:43]} 49. Ke6 {[%emt 0:00:06]} Ng6 {[%emt 0:00:42]} 50. Rh2 {[%emt 0:01:48]} Nf4+ {[%emt 0:01:37]} 51. Kf5 {[%emt 0:00:42]} Ng6 {[%emt 0:00:29]} 52. Rh5 {[%emt 0:00:06]} Nf8 {[%emt 0:01:44]} 53. g5 {[%emt 0:00:27]} hxg5 {[%emt 0:01:16]} 54. Rxg5+ {[%emt 0:00:33]} Kf7 {[%emt 0:02:26]} 55. Rh5 {[%emt 0:01:28]} Ke7 {[%emt 0:00:38]} 56. Rh1 {[%emt 0:00:22]} Kd6 {[%emt 0:02:44]} 57. Re1 {[%emt 0:01:00]} Nd7 {[%emt 0:01:11]} 58. Re6+ {[%emt 0:00:26]} Kd5 {[%emt 0:01:29]} 59. Re2 {[%emt 0:00:59]} Nc5 {[%emt 0:00:40]} 60. Rd2+ {[%emt 0:00:15]} Kc4 {[%emt 0:00:27]} 61. Ke5 {[%emt 0:00:55]} Nd3+ {[%emt 0:00:34]} 62. Ke4 {[%emt 0:00:35]} Nc5+ {[%emt 0:00:06]} 63. Ke3 {[%emt 0:00:05]} Ne6 {[%emt 0:01:10]} 64. Rd1 {[%emt 0:01:58]} Nc5 {[%emt 0:01:08]} 65. Rd4+ {[%emt 0:00:16]} Kb5 {[%emt 0:00:42]} 66. Rh4 {[%emt 0:00:46]} Kc6 {[%emt 0:00:31]} 67. Kd4 {[%emt 0:00:21]} Ne6+ {[%emt 0:00:49]} 68. Kc4 {[%emt 0:00:08]} Kd6 {[%emt 0:00:20]} 69. Rh1 {[%emt 0:00:41]} Ke5 {[%emt 0:00:40]} 70. Rf1 {[%emt 0:00:16]} Kd6 {[%emt 0:00:39]} 71. Rf5 {[%emt 0:01:21]} Nc7 {[%emt 0:00:38]} 72. Rc5 {[%emt 0:01:56]} Ne6 {[%emt 0:00:29]} 73. Rd5+ {[%emt 0:00:06]} Ke7 {[%emt 0:00:18]} 74. Rd1 {[%emt 0:00:56]} Kf6 {[%emt 0:01:57]} 75. Kd5 {[%emt 0:00:26]} Nf4+ {[%emt 0:01:29]} 76. Kd6 {[%emt 0:00:10]} Kf5 {[%emt 0:00:30]} 77. Rg1 {[%emt 0:01:12]} Ke4 {[%emt 0:00:33]} 78. Rg4 {[%emt 0:00:06]} Kf5 {[%emt 0:00:54]} 79. Rg8 {[%emt 0:00:45]} Ke4 {[%emt 0:00:58]} 80. Rf8 {[%emt 0:00:15]} Nd3 {[%emt 0:00:50]} 81. Re8+ {[%emt 0:00:18]} Kd4 {[%emt 0:00:42]} 82. Re2 {[%emt 0:00:13]} Nf4 {[%emt 0:00:35]} 83. Rd2+ {[%emt 0:00:06]} Ke4 {[%emt 0:00:18]} 84. Ra2 {[%emt 0:00:03]} Kf5 {[%emt 0:00:53]} 85. Ra5+ {[%emt 0:00:12]} Ke4 {[%emt 0:00:17]} 86. Ra4+ {[%emt 0:00:41]} Kf5 {[%emt 0:00:29]} 87. Rd4 {[%emt 0:00:01]} Ng6 {[%emt 0:00:51]} 88. Rd5+ {[%emt 0:00:13]} Ke4 {[%emt 0:00:34]} 89. Rh5 {[%emt 0:00:09]} Nf4 {[%emt 0:00:17]} 90. Rh4 {[%emt 0:00:02]} Kf5 {[%emt 0:00:29]} 91. Rh8 {[%emt 0:00:09]} Ke4 {[%emt 0:00:37]} 92. Rf8 {[%emt 0:00:03]} Nd3 {[%emt 0:00:48]} 93. Ra8 {[%emt 0:00:33]} Nf4 {[%emt 0:00:28]} 94. Ra5 {[%emt 0:00:05]} Ng6 {[%emt 0:00:56]} 95. Rd5 {[%emt 0:03:03]} Nf4 {[%emt 0:00:19]} 96. Re5+ {[%emt 0:00:05]} Kd4 {[%emt 0:00:50]} 97. Re1 {[%emt 0:00:19]} Nd3 {[%emt 0:00:06]} 98. Ra1 {[%emt 0:00:10]} Ke4 {[%emt 0:00:26]} 99. Ra4+ {[%emt 0:00:07]} Kf5 {[%emt 0:00:26]} 100. Rd4 {[%emt 0:00:35]} Nf4 {[%emt 0:00:09]} 1/2-1/2

[Event "EYCC Open-U12 2019"]
[Site "Bratislava"]
[Date "2019.08.08"]
[Round "7.31"]
[White "Costa, Leonardo"]
[Black "Aleksanyan, Davit"]
[Result "1-0"]
[ECO "B00"]
[WhiteElo "2002"]
[BlackElo "1797"]
[Annotator "NA"]
[PlyCount "209"]
[EventDate "2019.08.02"]
[EventType "swiss"]
[EventCountry "SVK"]
[SourceTitle "playchess.com"]
[Source "ChessBase"]
[SourceQuality "1"]
[TimeControl "40/5400+30:1800+30"]

1. e4 {[%emt 0:00:00]} d6 {[%emt 0:00:00]} 2. d4 {[%emt 0:00:11]} g6 {[%emt 0:00:00]} 3. Be3 {[%emt 0:02:29]} Bg7 {[%emt 0:00:09]} 4. Nc3 {[%emt 0:01:18]} Nf6 {[%emt 0:00:12]} 5. f3 {[%emt 0:00:57]} c6 {[%emt 0:01:09]} 6. a4 {[%emt 0:02:04]} O-O {[%emt 0:03:59]} 7. Qd2 {[%emt 0:12:53]} e5 {[%emt 0:01:27]} 8. Bc4 {[%emt 0:06:52]} Nbd7 {[%emt 0:12:16]} 9. Nge2 {[%emt 0:00:46]} Kh8 {[%emt 0:01:10]} 10. O-O {[%emt 0:02:02]} Qe7 {[%emt 0:09:26]} 11. Bb3 {[%emt 0:06:02]} Ne8 {[%emt 0:09:51]} 12. Bg5 {[%emt 0:10:05]} f6 {[%emt 0:08:39]} 13. Bh4 {[%emt 0:00:20]} g5 {[%emt 0:01:10]} 14. Bf2 {[%emt 0:01:30]} exd4 {[%emt 0:08:35]} 15. Nxd4 {[%emt 0:01:42]} Nc5 {[%emt 0:00:34]} 16. Ba2 {[%emt 0:02:56]} a5 {[%emt 0:04:25]} 17. Rfe1 {[%emt 0:03:25]} Qc7 {[%emt 0:10:05]} 18. Rad1 {[%emt 0:06:39]} Bd7 {[%emt 0:07:16]} 19. Nf5 {[%emt 0:06:52]} Be6 {[%emt 0:06:26]} 20. Bxc5 {[%emt 0:15:26]} Bxa2 {[%emt 0:00:19]} 21. Bxd6 {[%emt 0:01:08]} Nxd6 {[%emt 0:01:14]} 22. Qxd6 {[%emt 0:00:24]} Qb6+ {[%emt 0:03:26]} 23. Qd4 {[%emt 0:01:41]} Qxb2 {[%emt 0:01:43]} 24. Ra1 {[%emt 0:03:47]} Bf7 {[%emt 0:03:19]} 25. Reb1 {[%emt 0:02:32]} Qxc2 {[%emt 0:00:11]} 26. Ne3 {[%emt 0:00:10]} c5 {[%emt 0:00:39]} 27. Qxc5 {[%emt 0:03:15]} Qd3 {[%emt 0:00:06]} 28. Rd1 {[%emt 0:01:15]} Qa6 {[%emt 0:00:16]} 29. Nf5 {[%emt 0:00:12]} Rac8 {[%emt 0:00:30]} 30. Qe3 {[%emt 0:00:59]} Qc6 {[%emt 0:01:59]} 31. Nd5 {[%emt 0:01:28]} Qc5 {[%emt 0:00:16]} 32. Nxg7 {[%emt 0:01:28]} Kxg7 {[%emt 0:00:13]} 33. Rac1 {[%emt 0:01:00]} Qxe3+ {[%emt 0:02:29]} 34. Nxe3 {[%emt 0:00:04]} Rxc1 {[%emt 0:01:01]} 35. Rxc1 {[%emt 0:00:05]} b5 {[%emt 0:01:33]} 36. axb5 {[%emt 0:00:25]} Rb8 {[%emt 0:00:04]} 37. Nf5+ {[%emt 0:00:55]} Kg6 {[%emt 0:00:07]} 38. Nd6 {[%emt 0:01:26]} Bb3 {[%emt 0:00:47]} 39. Kf2 {[%emt 0:01:06]} a4 {[%emt 0:00:22]} 40. Ra1 {[%emt 0:00:00]} Rb6 {[%emt 0:00:00]} 41. Nf5 {[%emt 0:01:50]} Rxb5 {[%emt 0:00:44]} 42. Nd4 {[%emt 0:00:06]} Rc5 {[%emt 0:00:58]} 43. Ke3 {[%emt 0:01:23]} Rc8 {[%emt 0:03:07]} 44. Rb1 {[%emt 0:01:46]} Bf7 {[%emt 0:03:47]} 45. Ra1 {[%emt 0:00:34]} Be8 {[%emt 0:02:57]} 46. Kd2 {[%emt 0:01:41]} Ra8 {[%emt 0:02:32]} 47. Ne6 {[%emt 0:04:18]} Rb8 {[%emt 0:03:42]} 48. Kc3 {[%emt 0:01:05]} Rb3+ {[%emt 0:01:15]} 49. Kc2 {[%emt 0:00:11]} Rb6 {[%emt 0:00:23]} 50. Nd4 {[%emt 0:03:40]} h5 {[%emt 0:01:07]} 51. Ne2 {[%emt 0:04:00]} h4 {[%emt 0:02:47]} 52. Nc3 {[%emt 0:01:18]} Ra6 {[%emt 0:01:29]} 53. Ra2 {[%emt 0:00:09]} Ra5 {[%emt 0:02:20]} 54. Kd3 {[%emt 0:00:44]} Bd7 {[%emt 0:04:15]} 55. Ke3 {[%emt 0:04:23]} Be8 {[%emt 0:04:18]} 56. g3 {[%emt 0:00:55]} h3 {[%emt 0:00:57]} 57. Kd4 {[%emt 0:02:17]} f5 {[%emt 0:01:56]} 58. Ke3 {[%emt 0:03:20]} fxe4 {[%emt 0:00:44]} 59. Kxe4 {[%emt 0:01:52]} Bc6+ {[%emt 0:00:38]} 60. Ke3 {[%emt 0:01:00]} a3 61. Nb1 {[%emt 0:00:27]} Rb5 {[%emt 0:01:17]} 62. Nxa3 {[%emt 0:00:20]} Rb3+ {[%emt 0:00:07]} 63. Kd4 {[%emt 0:00:42]} Bxf3 {[%emt 0:01:20]} 64. Nc4 {[%emt 0:00:16]} g4 {[%emt 0:00:45]} 65. Nd2 {[%emt 0:00:38]} Rb4+ {[%emt 0:00:39]} 66. Ke3 {[%emt 0:00:47]} Bb7 {[%emt 0:00:24]} 67. Ra5 {[%emt 0:01:12]} Kf6 {[%emt 0:00:21]} 68. Ra2 {[%emt 0:00:34]} Kg6 {[%emt 0:00:16]} 69. Ra3 {[%emt 0:00:56]} Kf6 {[%emt 0:00:36]} 70. Rb3 {[%emt 0:00:21]} Rxb3+ {[%emt 0:00:24]} 71. Nxb3 {[%emt 0:00:04]} Ke5 {[%emt 0:00:33]} 72. Nc5 {[%emt 0:00:10]} Bf3 {[%emt 0:00:26]} 73. Nd3+ {[%emt 0:00:10]} Kf5 {[%emt 0:00:09]} 74. Kd4 {[%emt 0:00:28]} Be2 {[%emt 0:00:14]} 75. Nb4 {[%emt 0:00:17]} Bf3 {[%emt 0:00:17]} 76. Nc2 {[%emt 0:00:08]} Ke6 {[%emt 0:00:33]} 77. Ne3 {[%emt 0:00:28]} Kf6 {[%emt 0:00:11]} 78. Nc4 {[%emt 0:00:36]} Kf5 {[%emt 0:00:16]} 79. Ne5 {[%emt 0:01:07]} Bd1 {[%emt 0:00:24]} 80. Nc6 {[%emt 0:01:02]} Bf3 {[%emt 0:00:23]} 81. Na5 {[%emt 0:00:30]} Ke6 {[%emt 0:01:22]} 82. Nb3 {[%emt 0:00:27]} Kf5 {[%emt 0:00:32]} 83. Nc5 {[%emt 0:00:06]} Kf6 {[%emt 0:00:41]} 84. Ne4+ {[%emt 0:01:18]} Kf5 {[%emt 0:00:10]} 85. Nd6+ {[%emt 0:00:00]} Ke6 {[%emt 0:00:08]} 86. Nc4 {[%emt 0:01:02]} Kf5 {[%emt 0:00:30]} 87. Nb2 {[%emt 0:00:22]} Ke6 {[%emt 0:00:48]} 88. Nd3 {[%emt 0:00:14]} Kf5 {[%emt 0:00:10]} 89. Ke3 {[%emt 0:00:43]} Bd1 {[%emt 0:00:33]} 90. Kd4 {[%emt 0:00:24]} Bf3 {[%emt 0:00:06]} 91. Ne5 {[%emt 0:00:44]} Bd1 {[%emt 0:00:05]} 92. Nf7 {[%emt 0:00:38]} Bf3 {[%emt 0:00:36]} 93. Nd6+ {[%emt 0:00:18]} Ke6 {[%emt 0:00:04]} 94. Ne4 {[%emt 0:00:11]} Kf5 {[%emt 0:00:13]} 95. Nd2 {[%emt 0:00:28]} Bd1 {[%emt 0:01:03]} 96. Kd5 {[%emt 0:00:45]} Be2 {[%emt 0:00:12]} 97. Kd4 {[%emt 0:01:35]} Bd1 {[%emt 0:00:05]} 98. Ne4 {[%emt 0:00:25]} Bf3 {[%emt 0:00:10]} 99. Nf2 {[%emt 0:00:06]} Ke6 {[%emt 0:00:13]} 100. Ke3 {[%emt 0:00:27]} Kf5 {[%emt 0:00:23]} 101. Nxh3 {[%emt 0:00:44]} gxh3 {[%emt 0:01:56]} 102. Kxf3 {[%emt 0:00:07]} Kg5 {[%emt 0:00:07]} 103. Ke3 {[%emt 0:00:10]} Kf5 {[%emt 0:00:12]} 104. Kd4 {[%emt 0:00:09]} Kg5 {[%emt 0:02:08]} 105. Ke5 {[%emt 0:00:05]} 1-0

[Event "EYCC Open-U12 2019"]
[Site "Bratislava"]
[Date "2019.08.08"]
[Round "7.32"]
[White "Shatil, Shir"]
[Black "Labruyere, Roger"]
[Result "0-1"]
[ECO "A58"]
[WhiteElo "1653"]
[BlackElo "1897"]
[Annotator "NA"]
[PlyCount "120"]
[EventDate "2019.08.02"]
[EventType "swiss"]
[EventCountry "SVK"]
[SourceTitle "playchess.com"]
[Source "ChessBase"]
[SourceQuality "1"]
[TimeControl "40/5400+30:1800+30"]

1. d4 {[%emt 0:00:00]} Nf6 {[%emt 0:00:00]} 2. c4 {[%emt 0:00:00]} c5 {[%emt 0:00:00]} 3. d5 {[%emt 0:00:00]} b5 {[%emt 0:00:00]} 4. cxb5 {[%emt 0:00:00]} a6 {[%emt 0:00:00]} 5. bxa6 {[%emt 0:00:00]} g6 {[%emt 0:00:00]} 6. Nc3 {[%emt 0:00:00]} Bg7 {[%emt 0:00:00]} 7. e4 {[%emt 0:00:01]} O-O {[%emt 0:00:03]} 8. Nf3 {[%emt 0:00:56]} Qa5 {[%emt 0:00:14]} 9. Bd2 {[%emt 0:01:28]} Bxa6 {[%emt 0:01:16]} 10. Bxa6 {[%emt 0:08:22]} Nxa6 {[%emt 0:01:35]} 11. O-O {[%emt 0:06:14]} Rfb8 {[%emt 0:01:34]} 12. b3 {[%emt 0:09:15]} Nc7 {[%emt 0:02:40]} 13. Rc1 {[%emt 0:02:25]} d6 {[%emt 0:01:33]} 14. Re1 {[%emt 0:08:41]} Qa6 {[%emt 0:03:29]} 15. Rc2 {[%emt 0:07:14]} Nd7 {[%emt 0:04:42]} 16. g3 {[%emt 0:03:31]} Nb6 {[%emt 0:03:29]} 17. Qe2 {[%emt 0:08:30]} Qxe2 {[%emt 0:02:11]} 18. Rxe2 {[%emt 0:01:42]} c4 {[%emt 0:09:35]} 19. b4 {[%emt 0:02:10]} Ra3 {[%emt 0:05:38]} 20. Re3 {[%emt 0:02:40]} Rba8 {[%emt 0:02:27]} 21. Bc1 {[%emt 0:01:31]} Rxc3 {[%emt 0:00:33]} 22. Rexc3 {[%emt 0:00:08]} Bxc3 {[%emt 0:00:06]} 23. Rxc3 {[%emt 0:00:01]} Rxa2 {[%emt 0:00:21]} 24. Be3 {[%emt 0:02:26]} Ra1+ {[%emt 0:02:55]} 25. Kg2 {[%emt 0:00:30]} Nb5 {[%emt 0:00:33]} 26. Rc1 {[%emt 0:02:20]} Rxc1 {[%emt 0:00:09]} 27. Bxc1 {[%emt 0:00:01]} f5 {[%emt 0:01:19]} 28. Be3 {[%emt 0:00:55]} Nd7 {[%emt 0:03:47]} 29. exf5 {[%emt 0:01:05]} gxf5 {[%emt 0:00:03]} 30. Nd4 {[%emt 0:00:24]} Nc3 {[%emt 0:02:43]} 31. Nxf5 {[%emt 0:01:04]} Nxd5 {[%emt 0:00:05]} 32. b5 {[%emt 0:04:22]} Nxe3+ {[%emt 0:01:14]} 33. fxe3 {[%emt 0:03:25]} Kf7 {[%emt 0:00:11]} 34. Kf3 {[%emt 0:02:09]} Kf6 {[%emt 0:01:01]} 35. e4 {[%emt 0:01:32]} d5 {[%emt 0:06:58]} 36. g4 {[%emt 0:05:07]} e6 {[%emt 0:05:11]} 37. Nd4 {[%emt 0:02:08]} e5 {[%emt 0:00:15]} 38. Nc2 {[%emt 0:01:17]} d4 {[%emt 0:00:04]} 39. h4 {[%emt 0:02:32]} h6 {[%emt 0:01:10]} 40. Nb4 {[%emt 0:00:00]} Nc5 {[%emt 0:00:00]} 41. b6 {[%emt 0:06:33]} Ke6 {[%emt 0:10:10]} 42. Na2 {[%emt 0:14:20]} Kd6 {[%emt 0:01:23]} 43. g5 {[%emt 0:01:17]} hxg5 {[%emt 0:00:04]} 44. hxg5 {[%emt 0:01:25]} Ke6 {[%emt 0:00:58]} 45. Kg4 {[%emt 0:01:00]} c3 {[%emt 0:13:01]} 46. Nc1 {[%emt 0:00:12]} c2 {[%emt 0:00:42]} 47. Kh5 {[%emt 0:09:25]} d3 {[%emt 0:00:59]} 48. Nxd3 {[%emt 0:00:04]} Nxd3 {[%emt 0:00:03]} 49. b7 {[%emt 0:00:07]} c1=Q {[%emt 0:00:02]} 50. b8=Q {[%emt 0:00:10]} Qh1+ {[%emt 0:00:08]} 51. Kg6 {[%emt 0:00:21]} Qxe4+ {[%emt 0:02:33]} 52. Kg7 {[%emt 0:00:06]} Nf4 {[%emt 0:01:35]} 53. Qc8+ {[%emt 0:00:41]} Kd5 {[%emt 0:00:22]} 54. Qd7+ {[%emt 0:05:17]} Kc4 {[%emt 0:00:26]} 55. Qa4+ {[%emt 0:00:26]} Kd3 {[%emt 0:00:05]} 56. Qb3+ {[%emt 0:00:52]} Ke2 {[%emt 0:00:03]} 57. Qb2+ {[%emt 0:01:10]} Kf3 {[%emt 0:00:10]} 58. Qb3+ {[%emt 0:00:46]} Kg4 {[%emt 0:00:26]} 59. Qf7 {[%emt 0:02:08]} Qf5 {[%emt 0:00:54]} 60. Qa7 {[%emt 0:02:13]} Ne6+ {[%emt 0:01:31]} 0-1

[Event "EYCC Open-U12 2019"]
[Site "Bratislava"]
[Date "2019.08.08"]
[Round "7.33"]
[White "Cnejev, Vladimir-Alexandru"]
[Black "Dovbnia, Nikita"]
[Result "1/2-1/2"]
[ECO "C42"]
[WhiteElo "1907"]
[BlackElo "1777"]
[Annotator "NA"]
[PlyCount "103"]
[EventDate "2019.08.02"]
[EventType "swiss"]
[EventCountry "SVK"]
[SourceTitle "playchess.com"]
[Source "ChessBase"]
[SourceQuality "1"]
[TimeControl "40/5400+30:1800+30"]

1. e4 {[%emt 0:00:00]} e5 {[%emt 0:00:00]} 2. Nf3 {[%emt 0:00:00]} Nf6 {[%emt 0:00:00]} 3. Nxe5 {[%emt 0:00:00]} d6 {[%emt 0:00:00]} 4. Nf3 {[%emt 0:00:00]} Nxe4 {[%emt 0:00:13]} 5. Nc3 {[%emt 0:00:00]} Nxc3 {[%emt 0:00:13]} 6. dxc3 {[%emt 0:00:00]} Be7 {[%emt 0:00:16]} 7. Be3 {[%emt 0:00:07]} O-O {[%emt 0:00:34]} 8. Qd2 {[%emt 0:00:07]} Nd7 {[%emt 0:00:15]} 9. O-O-O {[%emt 0:00:15]} c6 {[%emt 0:00:09]} 10. h4 {[%emt 0:00:31]} d5 {[%emt 0:04:36]} 11. Ng5 {[%emt 0:00:27]} Nf6 {[%emt 0:01:01]} 12. Be2 {[%emt 0:10:53]} b5 {[%emt 0:10:28]} 13. f3 {[%emt 0:05:57]} a5 {[%emt 0:05:56]} 14. g4 {[%emt 0:00:56]} b4 {[%emt 0:11:13]} 15. c4 {[%emt 0:01:26]} Ba6 {[%emt 0:08:04]} 16. cxd5 {[%emt 0:02:40]} Qxd5 {[%emt 0:07:31]} 17. Kb1 {[%emt 0:07:05]} Qxd2 {[%emt 0:06:56]} 18. Rxd2 {[%emt 0:01:54]} Bxe2 {[%emt 0:01:14]} 19. Rxe2 {[%emt 0:00:02]} h6 {[%emt 0:06:18]} 20. Nh3 {[%emt 0:01:30]} Nd5 {[%emt 0:01:57]} 21. Nf4 {[%emt 0:03:54]} Nxe3 {[%emt 0:02:01]} 22. Rxe3 {[%emt 0:00:01]} Bf6 {[%emt 0:03:48]} 23. Nh5 {[%emt 0:09:53]} Bd4 {[%emt 0:03:05]} 24. Rd3 {[%emt 0:04:35]} Bc5 {[%emt 0:06:26]} 25. Ng3 {[%emt 0:02:03]} Rfe8 {[%emt 0:05:47]} 26. Ne4 {[%emt 0:02:05]} Be7 {[%emt 0:01:30]} 27. h5 {[%emt 0:02:58]} Kf8 {[%emt 0:05:18]} 28. Rhd1 {[%emt 0:02:19]} Red8 {[%emt 0:01:38]} 29. Kc1 {[%emt 0:01:29]} Ke8 {[%emt 0:01:17]} 30. b3 {[%emt 0:01:12]} Rxd3 {[%emt 0:00:58]} 31. Rxd3 {[%emt 0:00:07]} a4 {[%emt 0:00:51]} 32. Kb1 {[%emt 0:07:41]} g6 {[%emt 0:02:05]} 33. Nd6+ {[%emt 0:04:51]} Kf8 {[%emt 0:01:43]} 34. hxg6 {[%emt 0:06:32]} fxg6 {[%emt 0:01:07]} 35. Nc4 {[%emt 0:00:08]} axb3 {[%emt 0:00:13]} 36. cxb3 {[%emt 0:00:36]} Bf6 {[%emt 0:02:07]} 37. Rd6 {[%emt 0:00:21]} Kf7 {[%emt 0:00:07]} 38. Rxc6 {[%emt 0:00:47]} h5 {[%emt 0:01:06]} 39. Nd6+ {[%emt 0:01:40]} Kg7 {[%emt 0:00:21]} 40. Rc7+ {[%emt 0:00:00]} Kg8 {[%emt 0:00:00]} 41. gxh5 {[%emt 0:24:38]} Be5 {[%emt 0:07:36]} 42. Rc6 {[%emt 0:09:52]} gxh5 {[%emt 0:01:29]} 43. Nc4 {[%emt 0:02:25]} Bg7 {[%emt 0:04:54]} 44. Rc5 {[%emt 0:04:29]} Rf8 {[%emt 0:02:33]} 45. Rxh5 {[%emt 0:02:20]} Rxf3 {[%emt 0:00:11]} 46. Rh2 {[%emt 0:01:51]} Kf7 {[%emt 0:03:01]} 47. Re2 {[%emt 0:00:19]} Rg3 {[%emt 0:01:02]} 48. Nd6+ {[%emt 0:00:20]} Kg6 {[%emt 0:01:12]} 49. Re6+ {[%emt 0:00:25]} Kh7 {[%emt 0:00:20]} 50. Re2 {[%emt 0:00:11]} Kg6 {[%emt 0:00:35]} 51. Nc8 {[%emt 0:05:55]} Rd3 {[%emt 0:02:27]} 52. Ne7+ {[%emt 0:00:48]} 1/2-1/2